bitfinex/quotes_ETHUSD_20250725
["timestamp","ask_amount","ask_price","bid_price","bid_amount"]
[1753444040889,1e-08,3725.8,3725.7,10.33808584]
[1753444042687,1e-08,3725.8,3725.7,6.09108584]
[1753444042890,1e-08,3725.8,3725.7,10.33708584]
[1753444043696,1e-08,3725.8,3725.7,10.08677976]
[1753444044062,1e-08,3725.8,3725.7,10.33670692]
[1753444044680,1e-08,3725.8,3725.7,10.08677976]
[1753444045198,1e-08,3725.8,3725.7,5.84077976]
[1753444045502,1e-08,3725.8,3725.7,10.08677976]
[1753444046003,1e-08,3725.8,3725.7,4.245]
[1753444046161,1e-08,3725.8,3725.7,8.26485937]
[1753444046358,1e-08,3725.8,3725.7,4.15425937]
[1753444046593,1e-08,3725.8,3725.4,3.7436627]
[1753444046594,0.13440001,3725.8,3725.4,3.7436627]
[1753444046986,0.13440001,3725.8,3725.5,4.245]
[1753444047205,0.13440001,3725.8,3725.6,0.25004529]
[1753444047413,0.13440001,3725.8,3725.7,4.245]
[1753444047876,2.81845144,3725.8,3725.7,4.245]
[1753444048075,0.13440001,3725.8,3725.7,4.245]
[1753444048274,4.07128734,3725.8,3725.7,4.245]
[1753444048609,2.81838734,3725.8,3725.7,4.245]
[1753444049107,0.13440001,3725.8,3725.7,4.245]
[1753444049292,0.13440001,3725.8,3725.7,5.85836818]
[1753444049500,0.13440001,3725.8,3725.7,6.31986818]
[1753444049915,0.13440001,3725.8,3725.7,5.5808]
[1753444050579,0.13440001,3725.8,3725.7,5.83095246]
[1753444050780,0.13440001,3725.8,3725.7,5.83099412]
[1753444051280,0.13440001,3725.8,3725.7,5.36947866]
[1753444053014,2.81838734,3725.8,3725.7,0.25017866]
[1753444053214,5.01158734,3725.8,3725.7,4.49417866]
[1753444053514,8.01158734,3725.8,3725.7,0.25017866]
[1753444053721,2.68413141,3725.6,3725.5,4.244]
[1753444053876,2.68413141,3725.6,3725.5,4.49430561]
[1753444054581,2.68413141,3725.6,3725.5,0.25030561]
[1753444054582,3.93703141,3725.6,3725.5,0.25030561]
[1753444054779,2.68420346,3725.5,3725.4,4.244]
[1753444055013,3.93710346,3725.5,3725.4,4.4944017]
[1753444056216,2.68420346,3725.5,3725.4,4.4944017]
[1753444056381,1.1212,3725.6,3725.4,4.4944017]
[1753444056580,1.1212,3725.6,3725.5,0.2504017]
[1753444056881,3.80533387,3725.6,3725.5,0.2504017]
[1753444058704,3.00000001,3725.8,3725.5,0.2504017]
[1753444058911,2.68405937,3725.7,3725.6,4.4944017]
[1753444059209,5.68405937,3725.7,3725.6,4.4944017]
[1753444059808,5.68405937,3725.7,3725.6,4.244]
[1753444059809,6.93535937,3725.7,3725.6,4.244]
[1753444060116,6.93535937,3725.7,3724.6,0.001]
[1753444060117,2.68457389,3725.0,3724.6,0.001]
[1753444060318,2.68468117,3724.9,3724.7,0.25055904]
[1753444060517,2.68463582,3724.9,3724.8,4.49455904]
[1753444060813,4.57633582,3724.9,3724.8,4.49455904]
[1753444061317,3.75343582,3724.9,3724.8,4.49455904]
[1753444063222,3.88783582,3724.9,3724.8,4.49455904]
[1753444064090,2.68477998,3724.7,3724.6,0.001]
[1753444064292,3.98277998,3724.7,3724.6,0.25165643]
[1753444064514,5.20127998,3724.7,3724.6,0.25165643]
[1753444065318,3.98277998,3724.7,3724.6,0.25165643]
[1753444067418,3.98277998,3724.7,3724.6,4.49565643]
[1753444068917,3.98277998,3724.7,3724.6,4.245]
[1753444069125,0.1344,3724.7,3724.6,5.6508]
[1753444069307,2.81917998,3724.7,3724.6,5.6508]
[1753444069494,2.81917998,3724.7,3724.6,5.1784]
[1753444069823,2.81917998,3724.7,3724.6,4.245]
[1753444070926,2.81917998,3724.7,3724.6,5.1784]
[1753444071322,2.81917998,3724.7,3724.6,5.42883163]
[1753444071527,0.1344,3724.7,3724.6,5.90123163]
[1753444072993,0.1344,3724.7,3724.6,5.42883163]
[1753444073624,0.1344,3724.7,3724.6,4.49443163]
[1753444073821,5.81917998,3724.7,3724.6,0.25143163]
[1753444074120,5.81917998,3724.7,3724.6,4.49443163]
[1753444075023,5.81917998,3724.7,3724.6,5.42783163]
[1753444075398,5.81917998,3724.7,3724.6,5.90023163]
[1753444075399,0.1344,3724.7,3724.6,5.90023163]
[1753444075596,2.81917998,3724.7,3724.6,5.42783163]
[1753444076131,0.1344,3724.7,3724.6,4.49443163]
[1753444076890,0.1344,3724.7,3724.6,5.42783163]
[1753444077096,0.1344,3724.7,3724.6,5.90023163]
[1753444080411,0.1344,3724.7,3724.6,5.90053411]
[1753444081703,3.0,3725.2,3724.6,5.90053411]
[1753444081904,1.2185,3725.9,3724.6,5.90053411]
[1753444081905,1.1464,3726.0,3724.9,2.68459299]
[1753444082219,2.68435707,3725.3,3725.0,4.49273411]
[1753444082418,2.68435707,3725.3,3725.1,0.25073411]
[1753444082622,2.68435707,3725.3,3725.2,4.49273411]
[1753444083228,0.1344,3725.3,3725.2,4.49273411]
[1753444083429,2.81874756,3725.3,3725.2,4.49273411]
[1753444085853,2.81874756,3725.3,3725.2,4.49173411]
[1753444086354,0.1344,3725.3,3725.2,5.76633411]
[1753444086555,0.1344,3725.3,3725.2,10.15088714]
[1753444086766,1e-08,3725.8,3725.2,3.22546752]
[1753444086919,1e-08,3725.8,3725.3,0.25073411]
[1753444087120,0.1344,3725.4,3725.2,1.9682]
[1753444087434,0.1344,3725.4,3725.3,4.49211943]
[1753444087658,0.1344,3725.4,3725.3,5.33681943]
[1753444088343,0.1344,3725.4,3725.3,5.76671943]
[1753444090437,0.1344,3725.4,3725.3,1.52571943]
[1753444090661,2.81867551,3725.4,3725.3,1.52571943]
[1753444090828,0.1344,3725.4,3725.3,5.33581943]
[1753444091761,3.96897551,3725.4,3725.3,4.49111943]
[1753444093169,6.96897551,3725.4,3725.3,4.49111943]
[1753444095885,6.97097551,3725.4,3725.3,4.49111943]
[1753444096045,5.82067551,3725.4,3725.3,4.49111943]
[1753444096470,5.82067551,3725.4,3725.3,5.33581943]
[1753444097061,5.82067551,3725.4,3725.3,5.33579423]
[1753444097257,5.82067551,3725.4,3725.3,4.49109423]
[1753444097469,3.1364,3725.4,3725.3,5.76569423]
[1753444098053,0.1364,3725.4,3725.3,5.76569423]
[1753444099058,2.82067551,3725.4,3725.3,1.52569423]
[1753444099259,0.1364,3725.4,3725.3,5.76469423]
[1753444099463,0.1364,3725.4,3725.3,1.52569423]
[1753444099669,0.1364,3725.4,3725.3,5.76369423]
[1753444099866,0.1364,3725.4,3725.3,4.48909423]
[1753444100104,2.82067551,3725.4,3725.3,4.4891018]
[1753444100604,2.82067551,3725.4,3725.3,5.3338018]
[1753444100913,2.82067551,3725.4,3725.3,4.4891018]
[1753444101604,2.82067551,3725.4,3725.3,0.2511018]
[1753444101771,2.82067551,3725.4,3725.3,4.4891018]
[1753444101967,2.82067551,3725.4,3725.3,4.238]
[1753444102603,2.82067551,3725.4,3725.3,4.48917284]
[1753444104085,5.82067551,3725.4,3725.3,4.48917284]
[1753444104411,6.96247551,3725.4,3725.3,4.48917284]
[1753444105881,2.82067551,3725.4,3725.3,4.48917284]
[1753444106192,0.1364,3725.4,3725.3,6.82437284]
[1753444107106,2.82067551,3725.4,3725.3,5.76377284]
[1753444107292,2.82067551,3725.4,3725.3,5.76393854]
[1753444107490,2.82067551,3725.4,3725.3,4.48933854]
[1753444110301,2.82067551,3725.4,3725.3,4.4895171]
[1753444110896,2.82067551,3725.4,3725.3,0.2515171]
[1753444111102,2.82067551,3725.4,3725.3,4.4875171]
[1753444111302,2.82067551,3725.4,3725.3,4.236]
[1753444111502,2.82067551,3725.4,3725.3,4.48752886]
[1753444112938,2.82067551,3725.4,3725.3,0.25152886]
[1753444112939,5.82067551,3725.4,3725.3,0.25152886]
[1753444113103,8.61937551,3725.4,3725.3,0.25152886]
[1753444113301,8.61937551,3725.4,3724.6,0.001]
[1753444113302,3.73437998,3724.7,3724.6,0.001]
[1753444113625,3.86877998,3724.7,3724.6,4.48749799]
[1753444115250,2.81917998,3724.7,3724.6,4.48749799]
[1753444115451,2.81917998,3724.7,3724.6,5.76209799]
[1753444116157,0.1344,3724.7,3724.6,5.76209799]
[1753444116515,2.81917998,3724.7,3724.6,5.76209799]
[1753444116715,0.1344,3724.7,3724.6,5.76209799]
[1753444116915,2.81917998,3724.7,3724.6,5.76209799]
[1753444117434,0.1344,3724.7,3724.6,6.81069799]
[1753444118652,2.81917998,3724.7,3724.6,0.25249799]
[1753444118948,3.90327998,3724.7,3724.6,4.48749799]
[1753444119847,6.90327998,3724.7,3724.6,0.25249799]
[1753444120039,6.90327998,3724.7,3724.6,4.48749799]
[1753444121354,6.90327998,3724.7,3724.6,4.236]
[1753444121854,8.12487998,3724.7,3724.6,4.236]
[1753444122260,6.90327998,3724.7,3724.6,4.236]
[1753444122465,6.90327998,3724.7,3724.6,0.001]
[1753444122668,8.09197998,3724.7,3724.6,0.001]
[1753444123070,8.64197998,3724.7,3724.6,0.001]
[1753444124677,6.90327998,3724.7,3724.6,0.001]
[1753444124978,5.81917998,3724.7,3724.6,0.8382]
[1753444125445,5.81917998,3724.7,3724.6,0.001]
[1753444126670,5.81917998,3724.7,3724.6,1.2824]
[1753444127966,5.81917998,3724.7,3724.6,0.8382]
[1753444128288,5.81917998,3724.7,3724.6,0.001]
[1753444128440,5.81917998,3724.7,3724.6,4.234]
[1753444129578,0.1344,3724.7,3724.6,5.5154]
[1753444129783,2.81917998,3724.7,3724.6,5.7662241]
[1753444130160,0.1344,3724.7,3724.6,6.45607651]
[1753444130796,0.002,3725.4,3724.7,2.6847234]
[1753444131007,0.1344,3724.9,3724.8,0.2508241]
[1753444131479,0.1344,3724.9,3724.8,1.5322241]
[1753444131686,0.1344,3724.9,3724.8,2.55954433]
[1753444131889,0.1344,3724.9,3724.8,6.79154433]
[1753444132101,0.1344,3724.9,3724.8,2.55954433]
[1753444132309,0.1344,3724.9,3724.8,6.79154433]
[1753444133072,0.1344,3724.9,3724.8,2.55954433]
[1753444133273,0.1344,3724.9,3724.8,6.79154433]
[1753444134613,2.81903582,3724.9,3724.8,6.79154433]
[1753444135000,0.1344,3724.9,3724.8,6.79154433]
[1753444136177,2.81903582,3724.9,3724.8,6.79154433]
[1753444137081,0.1344,3724.9,3724.8,6.79154433]
[1753444138326,0.1344,3724.9,3724.8,6.79254433]
[1753444138740,0.1344,3724.9,3724.8,6.54172023]
[1753444140042,2.81903582,3724.9,3724.8,0.001]
[1753444140532,4.00773582,3724.9,3724.8,4.231]
[1753444141807,3.27543582,3724.9,3724.8,4.231]
[1753444142341,2.81903582,3724.9,3724.8,4.231]
[1753444143040,5.81903582,3724.9,3724.8,4.231]
[1753444143906,0.1344,3724.9,3724.8,5.5124]
[1753444145163,1e-08,3725.8,3724.8,3.35364992]
[1753444145455,0.1344,3725.2,3724.9,1.2814]
[1753444145756,0.1344,3725.2,3725.1,2.68449169]
[1753444145954,0.1344,3725.2,3725.1,6.91349169]
[1753444146143,1e-08,3725.8,3725.2,1.1523]
[1753444146311,0.1364,3725.4,3725.2,2.4898]
[1753444146518,0.1364,3725.4,3725.3,1.3375]
[1753444147438,2.68434756,3725.3,3724.9,1.1458]
[1753444147637,2.68434756,3725.3,3725.0,5.1281]
[1753444147820,2.68434756,3725.3,3725.1,4.228]
[1753444148023,2.68434756,3725.3,3725.1,5.1281]
[1753444148222,0.1344,3725.2,3724.8,0.001]
[1753444148556,0.1344,3725.2,3724.9,4.228]
[1753444148557,2.68456375,3725.0,3724.9,4.228]
[1753444149159,2.68463582,3724.9,3724.8,0.001]
[1753444149362,2.68463582,3724.9,3724.8,4.229]
[1753444149534,3.88803582,3724.9,3724.8,0.001]
[1753444150264,3.15573582,3724.9,3724.8,0.001]
[1753444150773,3.41693582,3724.9,3724.8,0.001]
[1753444151067,8.48643582,3724.9,3724.8,0.001]
[1753444151562,12.71343582,3724.9,3724.8,0.001]
[1753444155173,11.51003582,3724.9,3724.8,0.001]
[1753444155792,12.68143582,3724.9,3724.8,0.001]
[1753444156582,11.51003582,3724.9,3724.8,0.001]
[1753444156746,12.68143582,3724.9,3724.8,0.001]
[1753444157591,8.45443582,3724.9,3724.8,0.001]
[1753444157764,12.68043582,3724.9,3724.8,0.001]
[1753444158161,11.50903582,3724.9,3724.8,0.001]
[1753444158685,12.67513582,3724.9,3724.8,0.001]
[1753444159377,3.23477998,3724.7,3724.1,0.001]
[1753444159709,11.65837998,3724.7,3724.1,0.001]
[1753444159874,12.82447998,3724.7,3724.1,0.001]
[1753444163068,12.82447998,3724.7,3724.6,1e-08]
[1753444163694,19.86447998,3724.7,3724.6,1e-08]
[1753444163881,3.23514043,3724.2,3724.1,0.001]
[1753444164095,8.65604043,3724.2,3724.1,0.001]
[1753444164295,6.23521253,3724.1,3724.0,0.001]
[1753444164611,6.23521253,3724.1,3723.8,0.001]
[1753444164612,6.23535674,3723.9,3723.8,0.001]
[1753444164810,10.59475674,3723.9,3723.8,0.001]
[1753444165496,10.59475674,3723.9,3723.8,1e-08]
[1753444165814,12.88485674,3723.9,3723.8,1e-08]
[1753444169412,19.12537579,3723.9,3723.8,1e-08]
[1753444171981,5.81975674,3723.9,3723.8,1e-08]
[1753444172206,10.04375674,3723.9,3723.8,1.33750001]
[1753444172405,2.81975674,3723.9,3723.8,1.33750001]
[1753444172609,2.81975674,3723.9,3723.8,2.44900001]
[1753444172994,0.1344,3723.9,3723.8,2.44900001]
[1753444173221,2.81975674,3723.9,3723.8,2.44900001]
[1753444173408,3.1344,3723.9,3723.8,2.44900001]
[1753444173792,0.1344,3723.9,3723.8,2.44900001]
[1753444174193,0.1344,3723.9,3723.8,2.69390001]
[1753444174945,0.002,3724.9,3724.2,2.68512947]
[1753444175099,0.1344,3724.4,3724.3,5.17416833]
[1753444175300,0.002,3724.9,3724.5,2.68487174]
[1753444175542,0.1344,3724.5,3724.4,5.17405126]
[1753444175842,0.1344,3724.7,3724.6,2.68485206]
[1753444175996,0.1344,3724.7,3724.6,3.98555206]
[1753444176195,0.1344,3724.7,3724.6,5.09385206]
[1753444176449,0.002,3724.9,3724.8,2.6847079]
[1753444176747,0.002,3724.9,3724.8,3.7829079]
[1753444176900,0.002,3724.9,3724.8,6.01097868]
[1753444180638,0.002,3724.9,3724.8,10.23197868]
[1753444181531,0.002,3724.9,3724.8,10.23097868]
[1753444181732,0.002,3724.9,3724.8,6.01097868]
[1753444182245,0.002,3724.9,3724.8,10.23097868]
[1753444182811,0.002,3724.9,3724.8,10.23197868]
[1753444183133,0.002,3724.9,3724.8,7.54727078]
[1753444183447,0.002,3724.9,3724.8,2.3999]
[1753444183619,0.002,3724.9,3724.8,6.6199]
[1753444184322,0.002,3724.9,3724.8,9.3046079]
[1753444184848,0.002,3724.9,3724.8,6.6199]
[1753444187065,0.002,3724.9,3724.8,1.0992]
[1753444187213,0.002,3724.9,3724.8,4.219]
[1753444187417,0.002,3724.9,3724.8,5.5197]
[1753444189514,0.002,3724.9,3724.8,9.13271445]
[1753444189785,0.002,3724.9,3724.8,6.44800655]
[1753444189959,0.002,3724.9,3724.8,9.13271445]
[1753444191941,0.002,3724.9,3724.8,10.18001445]
[1753444195531,0.002,3724.9,3724.8,10.31441445]
[1753444198162,0.002,3724.9,3724.8,10.17701445]
[1753444198340,0.002,3724.9,3724.8,5.0337079]
[1753444198672,0.002,3724.9,3724.8,0.001]
[1753444198871,1.2473,3724.9,3724.8,4.216]
[1753444199249,3.26163582,3724.9,3724.8,4.216]
[1753444199573,3.93193582,3724.9,3724.8,4.216]
[1753444199869,2.82103582,3724.9,3724.8,4.216]
[1753444200570,2.82103582,3724.9,3724.8,4.215]
[1753444200969,3.93193582,3724.9,3724.8,4.215]
[1753444201543,3.26163582,3724.9,3724.8,4.215]
[1753444201871,2.82103582,3724.9,3724.8,4.215]
[1753444202170,0.1364,3724.9,3724.8,4.215]
[1753444203474,0.1364,3724.9,3724.8,0.001]
[1753444203768,0.1364,3724.9,3724.8,4.215]
[1753444204179,0.1364,3724.9,3724.8,5.5157]
[1753444204472,0.1364,3724.9,3724.8,5.0559]
[1753444205344,0.1364,3724.9,3724.8,0.001]
[1753444205846,0.1364,3724.9,3724.8,5.0549]
[1753444206044,0.1364,3724.9,3724.8,0.8419]
[1753444206268,0.1364,3724.9,3724.8,5.0549]
[1753444206472,0.002,3724.9,3724.8,9.36126669]
[1753444207288,0.002,3724.9,3724.8,8.2073079]
[1753444209973,0.002,3724.9,3724.8,9.4709079]
[1753444211187,0.002,3724.9,3724.8,9.46511446]
[1753444214498,0.002,3725.4,3724.8,9.46511446]
[1753444214499,0.002,3725.4,3725.3,3.76284756]
[1753444214652,0.002,3725.4,3725.3,8.64541878]
[1753444214858,0.002,3725.4,3725.3,10.02987531]
[1753444216206,0.002,3725.4,3725.3,5.35117531]
[1753444216410,0.002,3725.4,3725.3,10.02887531]
[1753444216969,0.002,3725.4,3725.3,8.75097531]
[1753444217170,0.002,3725.4,3725.3,8.10624756]
[1753444217972,0.002,3725.4,3725.3,8.91544756]
[1753444219405,0.002,3725.4,3725.3,9.38314756]
[1753444223488,0.002,3725.4,3725.3,12.38314756]
[1753444223883,0.002,3725.4,3725.3,12.93314756]
[1753444224203,0.002,3725.4,3725.3,14.49490531]
[1753444224204,1e-08,3725.4,3725.3,14.49490531]
[1753444226503,1e-08,3725.4,3725.3,10.28590531]
[1753444226692,1e-08,3725.4,3725.3,13.94190531]
[1753444226892,1e-08,3725.4,3725.3,11.10324756]
[1753444227376,1e-08,3725.4,3725.3,6.89724756]
[1753444227572,1e-08,3725.4,3725.3,11.10324756]
[1753444227785,1e-08,3725.4,3725.3,12.38014756]
[1753444228607,1e-08,3725.4,3725.3,12.93014756]
[1753444228789,1e-08,3725.4,3725.3,15.13600531]
[1753444229199,1e-08,3725.4,3725.3,10.93000531]
[1753444229401,1e-08,3725.4,3725.3,15.13500531]
[1753444231302,1e-08,3725.4,3725.3,14.66730531]
[1753444231716,1e-08,3725.4,3725.3,15.13500531]
[1753444232026,1e-08,3725.4,3725.3,14.11630531]
[1753444232315,1e-08,3725.4,3725.3,3.89724756]
[1753444232528,1e-08,3725.4,3725.3,8.10124756]
[1753444232826,1e-08,3725.4,3725.3,7.02274756]
[1753444233516,1e-08,3725.4,3725.3,6.88834756]
[1753444233916,1e-08,3725.4,3725.3,2.68434756]
[1753444234218,1e-08,3725.4,3725.3,6.88834756]
[1753444234720,1e-08,3725.4,3725.3,7.26160199]
[1753444234881,1e-08,3725.4,3725.3,8.07080199]
[1753444235487,1e-08,3725.4,3725.3,7.69754756]
[1753444235780,1e-08,3725.4,3725.3,6.88834756]
[1753444236500,1e-08,3725.4,3725.3,2.68434756]
[1753444236786,1e-08,3725.4,3725.3,6.88734756]
[1753444244519,1e-08,3725.4,3725.3,4.203]
[1753444245025,1e-08,3725.4,3725.3,6.88734756]
[1753444246433,1e-08,3725.4,3725.3,7.71784756]
[1753444246729,1e-08,3725.4,3725.3,3.89759527]
[1753444246935,1e-08,3725.4,3725.3,6.88534756]
[1753444247634,1e-08,3725.4,3725.3,8.15744756]
[1753444247836,1e-08,3725.4,3725.3,9.24864756]
[1753444249130,1e-08,3725.4,3725.3,9.79864756]
[1753444249309,1e-08,3725.4,3725.3,11.95167673]
[1753444249634,1e-08,3725.4,3725.3,14.95167673]
[1753444250306,1e-08,3725.4,3725.3,14.40067673]
[1753444250518,1e-08,3725.4,3725.3,8.92857673]
[1753444250717,1e-08,3725.4,3725.3,10.97454756]
[1753444250912,1e-08,3725.4,3725.3,6.88334756]
[1753444253830,1.08890001,3725.4,3725.2,2.68440943]
[1753444254036,1.08890001,3725.4,3724.9,0.001]
[1753444254037,1.09400001,3725.4,3724.9,0.001]
[1753444254346,2.68446918,3725.2,3725.0,4.198]
[1753444254547,2.68446918,3725.2,3725.1,4.198]
[1753444254716,3.80465956,3725.2,3725.1,4.198]
[1753444255116,4.89355956,3725.2,3725.1,4.198]
[1753444256219,4.89355956,3725.2,3724.9,0.001]
[1753444256220,2.68456375,3725.0,3724.9,0.001]
[1753444256425,2.68456375,3725.0,3724.9,4.2]
[1753444256752,3.77346375,3725.0,3724.9,4.2]
[1753444257537,1.0889,3725.0,3724.9,4.2]
[1753444257917,1.1202,3725.2,3724.9,4.2]
[1753444258447,3.74582384,3725.4,3724.9,4.2]
[1753444258744,4.21992384,3725.4,3724.9,4.2]
[1753444258943,4.83472384,3725.4,3724.9,4.2]
[1753444259144,2.68437594,3725.3,3724.9,4.2]
[1753444260038,4.8347006,3725.4,3724.9,4.2]
[1753444260442,1.53560001,3725.4,3724.9,4.2]
[1753444260755,3.73936375,3725.0,3724.9,0.001]
[1753444260914,3.84334043,3724.2,3724.1,0.001]
[1753444261345,7.93224043,3724.2,3724.1,0.001]
[1753444264051,8.06664043,3724.2,3724.1,0.001]
[1753444264915,1.2926,3724.2,3724.1,0.001]
[1753444265128,0.1344,3724.2,3724.1,0.8315]
[1753444266447,0.1344,3724.2,3724.1,0.001]
[1753444266647,4.97894043,3724.2,3724.1,0.001]
[1753444270751,7.97894043,3724.2,3724.1,0.001]
[1753444276626,7.36414043,3724.2,3724.1,0.001]
[1753444276826,6.93534043,3724.2,3724.1,0.001]
[1753444280142,7.36414043,3724.2,3724.1,0.001]
[1753444280671,8.50104043,3724.2,3724.1,0.001]
[1753444280829,8.50104043,3724.2,3724.1,1e-08]
[1753444281028,4.34931735,3723.4,3723.3,1e-08]
[1753444281327,13.5853406,3723.4,3723.3,1e-08]
[1753444281552,18.7960406,3723.4,3723.3,1e-08]
[1753444283250,12.56001735,3723.4,3723.3,1e-08]
[1753444283431,12.56001735,3723.4,3723.3,1.00000001]
[1753444284928,12.56001735,3723.4,3722.7,0.001]
[1753444284929,3.23593376,3723.1,3722.7,0.001]
[1753444285245,3.23593376,3723.1,3723.0,1e-08]
[1753444285246,11.56003376,3723.1,3723.0,1e-08]
[1753444285442,12.57573376,3723.1,3723.0,1e-08]
[1753444286569,0.55,3722.7,3722.5,0.001]
[1753444286771,5.68606422,3723.0,3722.5,0.001]
[1753444286772,8.8157,3722.6,3722.5,0.001]
[1753444287073,12.51769452,3722.6,3722.5,1e-08]
[1753444288169,12.51769452,3722.6,3721.9,0.001]
[1753444288170,8.7597,3722.6,3720.4,0.8411]
[1753444288359,2.68781077,3720.5,3720.4,0.8411]
[1753444288540,1.063,3720.7,3720.4,1.0921287]
[1753444288735,1.063,3720.7,3720.0,1.0959]
[1753444288736,1.0457,3721.6,3720.5,1.0921287]
[1753444288973,2.68764899,3720.8,3720.6,1.5555287]
[1753444289170,2.68764899,3720.8,3720.7,0.2510287]
[1753444289332,2.68764899,3720.8,3720.7,1.5555287]
[1753444289866,2.68747659,3721.0,3720.7,1.3045]
[1753444290076,3.0,3720.9,3720.8,1.55526214]
[1753444290272,2.68736833,3721.2,3720.8,1.55526214]
[1753444290572,2.68736833,3721.2,3720.4,2.68785931]
[1753444290573,5.68739895,3721.1,3720.4,2.68785931]
[1753444290777,3.0,3721.2,3720.7,1.0634]
[1753444290938,3.0,3721.4,3720.8,0.25075085]
[1753444291139,3.0,3721.4,3720.9,0.25075085]
[1753444291471,5.68710647,3721.5,3721.0,1.55533]
[1753444291674,0.93551313,3721.7,3721.1,2.93813943]
[1753444291846,0.1344,3721.3,3721.2,1.55533]
[1753444292042,0.1344,3721.3,3721.2,1.55531594]
[1753444292241,2.82163295,3721.3,3721.2,0.25081594]
[1753444292639,5.82163295,3721.3,3721.2,0.25081594]
[1753444293075,5.82163295,3721.3,3720.9,0.8411]
[1753444293378,2.687153,3721.5,3721.0,1.55544337]
[1753444293583,7.9686371,3721.6,3721.1,0.25094337]
[1753444293789,2.68720996,3721.4,3721.2,0.71434337]
[1753444293953,2.68720996,3721.4,3720.4,1.13377883]
[1753444293954,2.68720996,3721.4,3721.3,1.55544337]
[1753444294347,2.82160996,3721.4,3721.3,1.55544337]
[1753444295174,2.82160996,3721.4,3721.3,1.09204337]
[1753444296484,2.82160996,3721.4,3721.3,1.52974337]
[1753444297193,2.82160996,3721.4,3721.3,1.52995179]
[1753444297784,2.82160996,3721.4,3721.3,0.25115179]
[1753444297987,2.82160996,3721.4,3721.3,1.05875179]
[1753444298809,2.82160996,3721.4,3721.3,1.49645179]
[1753444299421,5.82160996,3721.4,3721.3,0.25115179]
[1753444299715,5.82160996,3721.4,3721.3,1.05875179]
[1753444299917,10.01560996,3721.4,3721.3,0.25115179]
[1753444300687,10.01560996,3721.4,3721.3,1.05875179]
[1753444300888,10.01560996,3721.4,3721.3,1.49645179]
[1753444301290,5.82160996,3721.4,3721.3,1.49645179]
[1753444301570,5.82160996,3721.4,3721.3,1.05875179]
[1753444302173,6.89600996,3721.4,3721.3,0.25115179]
[1753444302395,11.09000996,3721.4,3721.3,0.25115179]
[1753444303496,6.89600996,3721.4,3721.3,0.25115179]
[1753444303708,11.09000996,3721.4,3721.3,0.25115179]
[1753444304209,5.82160996,3721.4,3721.3,1.05875179]
[1753444304591,10.01560996,3721.4,3721.3,1.05875179]
[1753444305175,0.1344,3721.4,3721.3,2.64655179]
[1753444305508,0.1344,3721.4,3721.3,3.17993904]
[1753444305711,0.1344,3721.4,3721.3,2.64655179]
[1753444306416,0.1344,3721.4,3721.3,1.05897894]
[1753444306613,2.82156074,3721.4,3721.3,1.49667894]
[1753444307818,2.82156074,3721.4,3721.3,0.25137894]
[1753444308113,2.82156074,3721.4,3721.3,1.05897894]
[1753444308615,2.82156074,3721.4,3721.3,0.25137894]
[1753444309209,5.82156074,3721.4,3721.3,0.25137894]
[1753444309406,2.68796051,3720.3,3720.1,1.121]
[1753444309605,0.1344,3721.0,3720.1,1.121]
[1753444309916,0.1344,3720.2,3720.1,1.121]
[1753444310711,2.68752183,3720.9,3720.1,3.43534483]
[1753444310916,0.1344,3720.4,3720.2,1.2453]
[1753444311121,0.1344,3720.4,3720.3,1.2453]
[1753444315030,3.0,3721.1,3720.3,1.2453]
[1753444315031,3.0,3721.1,3720.4,1.0591]
[1753444315230,0.1344,3720.5,3720.4,1.0591]
[1753444315536,0.1344,3720.5,3720.4,5.2511]
[1753444315834,0.1344,3720.5,3720.4,6.4964]
[1753444316432,2.82221077,3720.5,3720.4,6.4964]
[1753444316939,0.1344,3720.5,3720.4,6.4964]
[1753444318137,0.1344,3720.5,3720.4,9.18428302]
[1753444318440,0.1344,3720.5,3720.4,6.4964]
[1753444319634,0.1344,3720.5,3720.4,6.0587]
[1753444319835,0.1344,3720.5,3720.4,6.4964]
[1753444321459,0.1344,3720.5,3720.4,7.14614]
[1753444321622,0.1344,3720.5,3720.4,6.4964]
[1753444322138,0.1344,3720.5,3720.4,6.0587]
[1753444322341,0.1344,3720.5,3720.4,1.0591]
[1753444322645,2.82221118,3720.5,3720.3,4.191]
[1753444322843,2.68788302,3720.4,3720.3,4.9986]
[1753444323056,2.82221953,3720.5,3720.1,0.8086]
[1753444323220,2.68790664,3720.4,3720.2,4.191]
[1753444323411,2.6878213,3720.5,3720.3,0.8076]
[1753444323807,2.68776702,3720.6,3720.4,0.8076]
[1753444324012,2.68776702,3720.6,3720.2,4.191]
[1753444324013,2.68776702,3720.6,3720.5,0.8076]
[1753444324250,2.68776702,3720.6,3720.1,0.001]
[1753444324251,2.68782234,3720.5,3720.1,0.001]
[1753444324412,2.82235461,3720.4,3720.1,4.192]
[1753444324614,0.1344,3720.2,3720.1,4.9996]
[1753444324814,0.1344,3720.2,3720.1,5.4373]
[1753444325235,1.053,3721.3,3720.2,2.68802329]
[1753444325439,0.1344,3720.4,3720.2,2.71490356]
[1753444325759,2.68759108,3720.9,3720.3,1.2453]
[1753444325930,0.1344,3720.5,3720.4,4.19]
[1753444326125,0.1344,3720.5,3720.4,5.3972]
[1753444326325,2.68743278,3721.1,3720.5,2.68780623]
[1753444326326,2.68743291,3721.1,3720.5,2.68780623]
[1753444326525,2.68724222,3721.3,3720.6,2.3042]
[1753444326749,0.1344,3721.0,3720.7,5.3972]
[1753444326954,0.1344,3721.0,3720.8,1.2072]
[1753444327373,0.1344,3721.0,3720.8,0.4431]
[1753444327543,0.1344,3721.0,3720.9,0.7641]
[1753444328066,0.1344,3721.0,3720.9,1.2072]
[1753444331164,0.1344,3721.0,3720.9,3.89472183]
[1753444331531,0.002,3721.8,3720.9,6.16185876]
[1753444331532,2.68695698,3721.7,3720.9,6.16185876]
[1753444331860,0.1344,3721.4,3721.0,5.3962]
[1753444332070,0.1344,3721.4,3721.1,1.2072]
[1753444332256,0.1344,3721.4,3721.2,2.6872583]
[1753444332454,0.1344,3721.4,3721.3,4.189]